bitfinex/quotes_BTCUSD_20251114
["timestamp","ask_amount","ask_price","bid_price","bid_amount"]
[1763150812725,0.20860311,95876.0,95873.0,0.11366149]
[1763150812932,0.20860525,95875.0,95873.0,0.11366149]
[1763150813203,0.20857232,95890.0,95873.0,0.11366149]
[1763150813407,0.20858754,95883.0,95882.0,0.01395]
[1763150814230,0.20860495,95875.0,95873.0,0.11366149]
[1763150814403,0.2085888,95883.0,95874.0,0.20860713]
[1763150814608,0.37151568,95892.0,95874.0,0.02594]
[1763150814848,0.37151568,95892.0,95875.0,0.02594]
[1763150815052,0.20860277,95876.0,95875.0,0.02594]
[1763150815253,0.37151568,95892.0,95875.0,0.02594]
[1763150815455,0.20858964,95883.0,95876.0,0.20860277]
[1763150815671,0.20857884,95887.0,95875.0,0.02594]
[1763150815818,0.11205115,95891.0,95875.0,0.23454305]
[1763150815983,0.20860196,95877.0,95875.0,0.02594]
[1763150816191,0.20860277,95876.0,95875.0,0.02594]
[1763150816392,0.20860495,95875.0,95874.0,0.11366149]
[1763150816601,0.20860089,95877.0,95874.0,0.11366149]
[1763150816798,0.20859293,95881.0,95875.0,0.02594]
[1763150817004,0.20860165,95877.0,95875.0,0.02594]
[1763150817329,0.37151568,95890.0,95875.0,0.02594]
[1763150817532,0.09926803,95891.0,95884.0,0.01796]
[1763150817662,0.01042752,95900.0,95890.0,0.03191]
[1763150817884,0.20856857,95892.0,95890.0,0.01395]
[1763150818198,0.20856477,95894.0,95890.0,0.01395]
[1763150818397,0.20856168,95895.0,95891.0,0.20856946]
[1763150818743,0.20856266,95895.0,95890.0,0.01395]
[1763150818944,0.20856605,95893.0,95890.0,0.01395]
[1763150819162,0.00024483,95903.0,95901.0,0.01796]
[1763150819378,0.00024483,95903.0,95891.0,0.02594]
[1763150819531,0.20878887,95903.0,95902.0,0.01796]
[1763150820108,0.20854622,95902.0,95891.0,0.02594]
[1763150820305,0.00024483,95903.0,95891.0,0.02594]
[1763150820556,0.20855052,95901.0,95891.0,0.02594]
[1763150820906,0.00124483,95903.0,95899.0,0.20855167]
[1763150821113,0.00124483,95903.0,95891.0,0.02594]
[1763150821114,0.00224483,95903.0,95902.0,0.01848]
[1763150821322,0.21078887,95903.0,95902.0,0.01848]
[1763150821532,0.00124483,95903.0,95890.0,0.01395]
[1763150821739,0.00024483,95903.0,95902.0,0.20854622]
[1763150821937,0.00024483,95903.0,95902.0,0.22702622]
[1763150822153,0.00024483,95903.0,95902.0,0.32220771]
[1763150822586,0.00024483,95903.0,95902.0,0.38254704]
[1763150822795,0.00024483,95903.0,95902.0,0.63081425]
[1763150823001,0.0002,95930.0,95929.0,0.20848752]
[1763150823216,0.0002,95930.0,95929.0,0.26893752]
[1763150823458,0.0002,95930.0,95929.0,0.22212752]
[1763150823696,0.0002,95930.0,95929.0,0.32139555]
[1763150824076,0.0002,95930.0,95929.0,0.39615114]
[1763150824313,0.0002,95930.0,95929.0,0.71915114]
[1763150825242,0.0002,95930.0,95929.0,0.68781429]
[1763150825796,0.0002,95930.0,95929.0,0.68881429]
[1763150826006,0.0002,95930.0,95929.0,0.68781429]
[1763150826389,0.0002,95950.0,95940.0,0.36641874]
[1763150826584,0.0002,95950.0,95949.0,0.66283209]
[1763150827019,0.0002,95950.0,95949.0,0.64435209]
[1763150827435,0.0002,95950.0,95949.0,0.72488222]
[1763150827867,0.0002,95950.0,95949.0,0.68777083]
[1763150828281,0.0002,95950.0,95949.0,0.7248771]
[1763150828492,0.0002,95950.0,95949.0,0.68877083]
[1763150828704,0.0002,95950.0,95949.0,0.76584477]
[1763150828907,0.0002,95950.0,95949.0,0.82244522]
[1763150829113,0.001478,95950.0,95949.0,0.76684477]
[1763150829531,0.001478,95950.0,95949.0,0.76584477]
[1763150829735,0.001478,95950.0,95949.0,0.82037982]
[1763150829936,0.001478,95950.0,95949.0,0.76684477]
[1763150830222,0.0002,95990.0,95970.0,0.05341873]
[1763150830440,9.81948,96000.0,95999.0,0.60578424]
[1763150831090,9.81948,96000.0,95999.0,0.01265]
[1763150831723,9.81948,96000.0,95999.0,0.01365]
[1763150831941,10.02781333,96000.0,95999.0,0.001]
[1763150832153,10.15012271,96000.0,95999.0,0.001]
[1763150832428,10.04645333,96000.0,95999.0,0.001]
[1763150832835,9.84853666,96000.0,95970.0,0.01265]
[1763150833047,0.20838528,95977.0,95970.0,0.01265]
[1763150833268,0.09926803,95996.0,95970.0,0.01265]
[1763150833483,0.22206051,95979.0,95970.0,0.01265]
[1763150833692,0.01864,95971.0,95955.0,0.20842942]
[1763150833907,0.01864,95959.0,95940.0,0.01042318]
[1763150834112,0.01368,95941.0,95938.0,0.20846624]
[1763150834320,0.01864,95956.0,95947.0,0.20844789]
[1763150834547,0.0265,95959.0,95946.0,0.2084505]
[1763150834754,0.0265,95959.0,95930.0,0.01042426]
[1763150834961,0.20843354,95954.0,95930.0,0.33342426]
[1763150835166,0.0265,95959.0,95930.0,0.01042426]
[1763150835371,0.0265,95959.0,95943.0,0.20845597]
[1763150835545,0.20843845,95952.0,95940.0,0.208463]
[1763150835725,0.20842635,95958.0,95930.0,0.01042426]
[1763150835934,0.20843069,95956.0,95944.0,0.20845478]
[1763150836167,0.20842451,95958.0,95930.0,0.01042426]
[1763150836341,0.20843688,95953.0,95941.0,0.20845945]
[1763150836535,0.20843315,95955.0,95944.0,0.20845361]
[1763150836735,0.02674464,95959.0,95930.0,0.01042426]
[1763150836963,0.20843521,95954.0,95942.0,0.20845885]
[1763150837173,0.20843679,95953.0,95942.0,0.20845885]
[1763150837369,0.02674464,95959.0,95949.0,0.20844337]
[1763150837568,0.02674464,95959.0,95930.0,0.01042426]
[1763150837569,0.00024464,95959.0,95955.0,0.20842937]
[1763150837781,0.00024464,95959.0,95956.0,0.02084288]
[1763150837937,0.00124464,95959.0,95946.0,0.20844943]
[1763150838139,0.00124464,95959.0,95930.0,0.95545197]
[1763150838341,0.00124464,95959.0,95944.0,0.09926803]
[1763150838528,0.00124464,95959.0,95957.0,0.20842539]
[1763150838728,0.00124464,95959.0,95958.0,0.02084245]
[1763150839007,0.00024464,95959.0,95957.0,0.20842476]
[1763150839137,0.00024464,95959.0,95958.0,0.02084245]
[1763150840261,0.00024464,95959.0,95952.0,0.20843644]
[1763150840262,0.00024464,95959.0,95949.0,0.20844295]
[1763150840466,0.00024464,95959.0,95939.0,0.323]
[1763150840662,0.01368,95967.0,95933.0,0.04341874]
[1763150840663,0.01574464,95965.0,95954.0,0.20843112]
[1763150840865,0.01574464,95965.0,95957.0,0.20842538]
[1763150841103,0.01368,95967.0,95946.0,0.20845058]
[1763150841278,0.01368,95967.0,95957.0,0.20842538]
[1763150841482,0.01368,95967.0,95945.0,0.323]
[1763150841634,0.01368,95967.0,95956.0,0.20842774]
[1763150841836,0.01368,95967.0,95941.0,0.323]
[1763150842038,0.20941047,95965.0,95954.0,0.20843148]
[1763150842245,0.01368,95967.0,95960.0,0.20841843]
[1763150842491,0.001,95965.0,95960.0,0.20841843]
[1763150842931,0.01468,95967.0,95960.0,0.20841843]
[1763150843133,0.01468,95967.0,95958.0,0.20842325]
[1763150843328,0.01468,95967.0,95960.0,0.20841913]
[1763150843552,0.01468,95967.0,95941.0,0.323]
[1763150843695,0.20840714,95966.0,95941.0,0.323]
[1763150843890,0.01368,95967.0,95953.0,0.20843457]
[1763150844118,0.01368,95967.0,95941.0,0.323]
[1763150844119,0.01468,95967.0,95941.0,0.323]
[1763150844519,0.01568,95967.0,95945.0,0.01327092]
[1763150844695,0.01568,95967.0,95965.0,0.2084079]
[1763150844900,0.01568,95967.0,95963.0,0.20841174]
[1763150845254,0.01468,95967.0,95956.0,0.20842688]
[1763150845541,0.20842336,95959.0,95942.0,0.20845927]
[1763150845740,0.20841786,95962.0,95944.0,0.09926803]
[1763150846044,0.20840931,95965.0,95944.0,0.09926803]
[1763150846344,0.20841297,95964.0,95954.0,0.20843206]
[1763150846539,0.01468,95967.0,95956.0,0.20842886]
[1763150846775,0.2220473,95985.0,95970.0,0.20839713]
[1763150846977,0.01368,95985.0,95965.0,0.2084085]
[1763150847188,0.0265,95980.0,95965.0,0.2084085]
[1763150847390,0.01368,95985.0,95970.0,0.20839729]
[1763150847391,0.0265,95978.0,95970.0,0.20839729]
[1763150847531,0.0265,95978.0,95966.0,0.20840714]
[1763150847772,0.001,95967.0,95966.0,0.20840714]
[1763150847986,0.00024461,95968.0,95966.0,0.22924785]
[1763150848398,0.00024461,95968.0,95966.0,0.20840714]
[1763150848600,0.00024461,95968.0,95967.0,0.323]
[1763150849674,0.00024461,95968.0,95967.0,0.53140497]
[1763150849863,0.00024461,95968.0,95965.0,0.09926803]
[1763150850068,0.01368,95966.0,95956.0,0.03695053]
[1763150850265,0.03232,95966.0,95950.0,0.03695053]
[1763150850471,0.0275,95965.0,95949.0,0.03695053]
[1763150850666,0.0275,95965.0,95940.0,0.01042318]
[1763150850667,0.20843367,95954.0,95940.0,0.03695053]
[1763150850838,0.20843188,95955.0,95941.0,0.11366149]
[1763150851041,0.01308,95953.0,95939.0,0.03695053]
[1763150851243,0.01308,95953.0,95925.0,0.03695053]
[1763150851244,0.01753,95940.0,95925.0,0.03695053]
[1763150851466,0.01308,95935.0,95924.0,0.03695053]
[1763150851667,0.01308,95935.0,95927.0,0.20849081]
[1763150851869,0.01308,95935.0,95928.0,0.20848852]
[1763150852022,0.01308,95935.0,95924.0,0.24544891]
[1763150852023,0.01308,95935.0,95924.0,0.03695053]
[1763150852223,0.01308,95935.0,95900.0,0.005]
[1763150852224,0.01253,95925.0,95917.0,0.03695053]
[1763150852448,0.01253,95925.0,95913.0,0.03695053]
[1763150852651,0.20849946,95924.0,95913.0,0.03695053]
[1763150852870,0.0275,95930.0,95911.0,0.03695053]
[1763150853076,0.22796332,95929.0,95911.0,0.03695053]
[1763150853282,0.01947465,95928.0,95918.0,0.09926803]
[1763150853487,0.3505,95949.0,95936.0,0.20847027]
[1763150853691,0.22791808,95948.0,95937.0,0.02084701]
[1763150853893,0.04697071,95947.0,95936.0,0.20847068]
[1763150854101,0.01947071,95946.0,95922.0,0.03695053]
[1763150854303,0.01947071,95945.0,95926.0,0.03695053]
[1763150854535,0.01947071,95945.0,95920.0,0.63245306]
[1763150854536,0.20840992,95965.0,95945.0,0.20845121]
[1763150854761,0.20840992,95965.0,95933.0,0.09926803]
[1763150854762,0.20840992,95965.0,95950.0,0.20844011]
[1763150854978,0.20841458,95963.0,95951.0,0.2292825]
[1763150855245,0.20841468,95963.0,95951.0,0.22928273]
[1763150855470,0.0275,95963.0,95952.0,0.20843755]
[1763150855688,0.01946335,95962.0,95957.0,0.20842557]
[1763150855926,0.09951264,95968.0,95951.0,0.2084391]
[1763150855927,0.2084125,95964.0,95951.0,0.2084391]
[1763150856340,0.20842169,95960.0,95946.0,0.20844975]
[1763150856549,0.20841897,95961.0,95948.0,0.20844602]
[1763150856790,0.001,95962.0,95940.0,0.01042318]
[1763150856964,0.002,95962.0,95954.0,0.208432]
[1763150857167,0.001,95962.0,95954.0,0.208432]
[1763150857378,0.001,95962.0,95940.0,0.01042318]
[1763150857576,0.001,95960.0,95948.0,0.20844481]
[1763150857795,0.001,95962.0,95954.0,0.20843251]
[1763150857995,0.001,95962.0,95956.0,0.20842809]
[1763150858196,0.20864954,95968.0,95957.0,0.2084259]
[1763150858401,0.001,95961.0,95960.0,0.20841953]
[1763150858655,0.001,95961.0,95955.0,0.20842984]
[1763150858796,0.001,95961.0,95956.0,0.01388437]
[1763150859000,0.001,95962.0,95955.0,0.20843017]
[1763150859263,0.20841032,95965.0,95955.0,0.20843017]
[1763150859437,0.20841227,95964.0,95955.0,0.20843017]
[1763150859644,0.001,95961.0,95956.0,0.22823976]
[1763150859856,0.00024461,95968.0,95956.0,0.01981301]
[1763150860042,0.20841458,95963.0,95952.0,0.20843546]
[1763150860245,0.002,95962.0,95958.0,0.20842326]
[1763150860442,0.001,95962.0,95959.0,0.02084223]
[1763150860641,0.001,95962.0,95960.0,0.2084196]
[1763150860846,0.001,95961.0,95960.0,0.2084196]
[1763150861419,0.001,95961.0,95953.0,0.32209683]
[1763150861420,0.01853,95961.0,95955.0,0.20843094]
[1763150861623,0.01853,95961.0,95959.0,0.20842158]
[1763150861819,0.01753,95961.0,95953.0,0.11366149]
[1763150862292,0.01753,95954.0,95953.0,0.11366149]
[1763150862736,0.001,95961.0,95953.0,0.11366149]
[1763150862936,0.001,95961.0,95954.0,0.02084332]
[1763150863080,0.20839748,95971.0,95960.0,0.20841909]
[1763150863280,0.001,95961.0,95960.0,0.20841909]
[1763150863708,0.001,95961.0,95953.0,0.11366149]
[1763150863904,0.20942017,95961.0,95953.0,0.11366149]
[1763150864105,0.01753,95954.0,95953.0,0.11366149]
[1763150864305,0.001,95961.0,95953.0,0.11366149]
[1763150864639,0.01950063,95960.0,95953.0,0.11366149]
[1763150864880,0.20843162,95955.0,95953.0,0.11366149]
[1763150865054,0.20842317,95959.0,95953.0,0.11366149]
[1763150865260,0.20942017,95961.0,95953.0,0.11366149]
[1763150865469,0.001,95961.0,95954.0,0.02084332]
[1763150865604,0.01308,95954.0,95953.0,0.11366149]
[1763150866012,0.01308,95954.0,95947.0,0.11366149]
[1763150866441,0.20864831,95968.0,95957.0,0.20842559]
[1763150866657,0.00024461,95968.0,95959.0,0.20842154]
[1763150866836,0.20840497,95967.0,95957.0,0.20842559]
[1763150867397,0.00024461,95968.0,95953.0,0.20843361]
[1763150867718,0.20843972,95951.0,95950.0,0.03695053]
[1763150867873,0.20844624,95948.0,95947.0,0.11366149]
[1763150868228,0.01308,95954.0,95947.0,0.11366149]
[1763150868419,0.01308,95954.0,95948.0,0.02084462]
[1763150868546,0.01308,95954.0,95949.0,0.20844406]
[1763150868744,0.01308,95954.0,95947.0,0.11366149]
[1763150869350,0.20842029,95960.0,95947.0,0.11366149]
[1763150869549,0.0275,95963.0,95949.0,0.20844354]
[1763150869751,0.0275,95963.0,95947.0,0.11366149]
[1763150869970,0.09951264,95968.0,95947.0,0.11366149]
[1763150869971,0.20841882,95961.0,95952.0,0.20843737]
[1763150870170,0.0275,95967.0,95947.0,0.11366149]
[1763150870401,0.01308,95950.0,95947.0,0.11366149]
[1763150870609,0.01753,95948.0,95947.0,0.11366149]
[1763150871635,0.001,95963.0,95947.0,0.11366149]
[1763150871833,0.0275,95965.0,95948.0,0.05824061]
[1763150872034,0.20841394,95963.0,95948.0,0.1719021]
[1763150872237,0.0275,95965.0,95954.0,0.20843283]
[1763150872440,0.0275,95965.0,95949.0,0.03739599]
[1763150872441,0.0275,95965.0,95956.0,0.20842857]
[1763150872643,0.0275,95965.0,95957.0,0.02084266]
[1763150872901,0.0285,95965.0,95958.0,0.02084245]
[1763150873072,0.0295,95965.0,95958.0,0.02084245]
[1763150873277,0.0295,95965.0,95951.0,0.02084397]
[1763150873499,0.01753,95959.0,95949.0,0.03739599]
[1763150873654,0.20842898,95956.0,95948.0,0.15105748]
[1763150873904,0.01753,95959.0,95948.0,0.15105748]
[1763150874202,0.20843087,95957.0,95949.0,0.03739599]
[1763150874579,0.0285,95965.0,95950.0,0.02084418]
[1763150874791,0.0285,95965.0,95959.0,0.20842158]
[1763150875111,0.20842028,95960.0,95952.0,0.03739599]
[1763150875331,0.0275,95965.0,95951.0,0.03739599]
[1763150875914,0.20842496,95958.0,95951.0,0.03739599]
[1763150876488,0.0285,95965.0,95953.0,0.2084342]
[1763150876864,0.0285,95965.0,95954.0,0.02084332]
[1763150877067,0.0285,95965.0,95948.0,0.11366149]
[1763150877068,0.03061,95953.0,95950.0,0.03739599]
[1763150877240,0.20844189,95950.0,95949.0,0.03739599]
[1763150877444,0.22597377,95950.0,95948.0,0.15105748]
[1763150877653,0.22597406,95949.0,95948.0,0.11366149]
[1763150877864,0.22597406,95949.0,95946.0,0.03739599]
[1763150878092,0.01753,95949.0,95946.0,0.03739599]
[1763150878498,0.20844624,95948.0,95946.0,0.03739599]
[1763150878673,0.22597841,95947.0,95945.0,0.03739599]
[1763150879081,0.22598058,95946.0,95945.0,0.03739599]
[1763150879265,0.01753,95946.0,95942.0,0.0554258]
[1763150879616,0.01753,95946.0,95940.0,0.03746396]
[1763150879617,0.2084571,95943.0,95940.0,0.03746396]
[1763150879818,0.20846362,95940.0,95939.0,0.03746396]
[1763150879960,0.20846579,95939.0,95938.0,0.03746396]
[1763150880158,0.20846796,95938.0,95937.0,0.03746396]
[1763150880362,0.20846796,95938.0,95927.0,0.03746396]
[1763150880363,0.2084897,95928.0,95927.0,0.03746396]
[1763150880564,0.20850926,95919.0,95918.0,0.03746396]
[1763150880787,0.20850926,95919.0,95917.0,0.03746396]
[1763150880991,0.20851578,95916.0,95912.0,0.03746396]
[1763150881310,0.20852665,95911.0,95910.0,0.03746396]
[1763150881513,0.20852665,95911.0,95890.0,0.01042861]
[1763150881514,0.20853535,95907.0,95906.0,0.03746396]
[1763150881723,0.20853535,95907.0,95872.0,0.13161976]
[1763150881724,0.20856362,95894.0,95893.0,0.03746396]
[1763150881907,0.20857232,95890.0,95889.0,0.03746396]
[1763150882114,0.02889,95909.0,95888.0,0.03746471]
[1763150882324,0.01319,95914.0,95888.0,0.03746471]
[1763150882325,0.01319,95914.0,95893.0,0.03746471]
[1763150882537,0.01319,95914.0,95890.0,0.63245632]
[1763150882538,0.01319,95922.0,95911.0,0.20852566]
[1763150882701,0.02889,95921.0,95907.0,0.03746471]
[1763150882918,0.20853535,95907.0,95906.0,0.03746471]
[1763150883116,0.20854747,95902.0,95898.0,0.03746471]
[1763150883341,0.03203,95899.0,95893.0,0.03746471]
[1763150883503,0.03203,95899.0,95888.0,0.2460392]
[1763150883705,0.03203,95899.0,95889.0,0.03746471]
[1763150883905,0.03203,95899.0,95890.0,0.03746471]
[1763150884105,0.03203,95899.0,95889.0,0.03746471]
[1763150884354,0.03203,95899.0,95889.0,0.20857315]
[1763150884559,0.01884,95890.0,95886.0,0.03746471]
[1763150884884,0.20858972,95882.0,95875.0,0.03746471]
[1763150885008,0.01884,95881.0,95868.0,0.03746471]
[1763150885206,0.01319,95870.0,95864.0,0.03746471]
[1763150885438,0.01319,95870.0,95858.0,0.03746471]
[1763150885633,0.01319,95870.0,95852.0,0.0554258]
[1763150885634,0.01319,95870.0,95855.0,0.03746471]
[1763150885836,0.04208,95870.0,95855.0,0.03746471]
[1763150886092,0.208655,95852.0,95850.0,0.0004]
[1763150886372,0.01884,95856.0,95850.0,0.0004]
[1763150886735,0.01884,95851.0,95850.0,0.0004]
[1763150887135,0.02889,95859.0,95850.0,0.0004]
[1763150887363,0.20864347,95858.0,95850.0,0.0004]
[1763150887766,0.20865653,95852.0,95850.0,0.0004]
[1763150887929,0.01884,95851.0,95850.0,0.0004]
[1763150889275,0.20864573,95857.0,95850.0,0.0004]
[1763150889457,0.20862889,95866.0,95850.0,0.0004]
[1763150889458,0.02721,95863.0,95850.0,0.0004]
[1763150889656,0.01816,95851.0,95850.0,0.0004]
[1763150891239,0.22681718,95851.0,95850.0,0.0004]
[1763150891455,0.01916,95851.0,95850.0,0.0004]
[1763150891731,0.001,95851.0,95850.0,0.0004]
[1763150891926,0.02016,95851.0,95850.0,0.0004]
[1763150892520,0.01816,95851.0,95850.0,0.20905936]
[1763150892675,0.01916,95851.0,95850.0,0.0004]
[1763150893107,0.02016,95851.0,95850.0,0.0004]
[1763150893639,0.01916,95851.0,95850.0,0.0004]
[1763150893840,0.02016,95851.0,95850.0,0.0004]
[1763150894040,0.002,95851.0,95850.0,0.20905936]
[1763150894215,0.02016,95851.0,95850.0,0.0004]
[1763150894414,0.002,95851.0,95850.0,0.0004]
[1763150895374,0.02016,95851.0,95850.0,0.0004]
[1763150895799,0.11942803,95851.0,95850.0,0.0004]
[1763150896309,0.51828409,95851.0,95850.0,0.0004]
[1763150896442,0.51828409,95851.0,95800.0,0.38294231]
[1763150896443,0.01043405,95840.0,95805.0,0.2087555]
[1763150896670,0.2087104,95827.0,95813.0,0.20873877]
[1763150896836,0.01043514,95830.0,95800.0,0.01083841]
[1763150897044,0.01318,95826.0,95804.0,0.20875744]
[1763150897241,0.01318,95826.0,95800.0,0.01083841]
[1763150897469,0.01318,95826.0,95808.0,0.09926803]
[1763150897668,0.01318,95826.0,95810.0,0.3721039]
[1763150897883,0.02721,95825.0,95800.0,0.0004]
[1763150898082,0.02721,95825.0,95805.0,0.20875604]
[1763150898083,0.01318,95809.0,95805.0,0.20875604]
[1763150898280,0.01318,95809.0,95800.0,0.0004]
[1763150898281,0.02721,95825.0,95817.0,0.20873074]
[1763150898573,0.02721,95825.0,95818.0,0.01815255]
[1763150899008,0.02821,95825.0,95818.0,0.22688018]
[1763150899252,0.02821,95825.0,95819.0,0.20872592]
[1763150899403,0.02821,95825.0,95820.0,0.20872369]
[1763150899605,0.01816,95820.0,95819.0,0.20872592]
[1763150900177,0.001,95825.0,95823.0,0.20871806]
[1763150900382,0.01318,95826.0,95800.0,0.33383841]
[1763150900572,0.001,95825.0,95808.0,0.09926803]
[1763150900779,0.001,95825.0,95824.0,0.20871597]
[1763150900924,0.01318,95828.0,95826.0,0.20871118]
[1763150901618,0.01318,95828.0,95810.0,0.38254122]
[1763150901619,0.01816,95827.0,95810.0,0.38254122]
[1763150901824,0.01318,95811.0,95800.0,0.0004]
[1763150901993,0.22192478,95811.0,95800.0,0.0004]
[1763150902196,0.01318,95811.0,95809.0,0.20874778]
[1763150902373,0.01318,95817.0,95800.0,0.3725039]
[1763150902574,0.01318,95817.0,95813.0,0.20873937]
[1763150902789,0.04039,95817.0,95800.0,0.0004]
[1763150903026,0.20873793,95814.0,95800.0,0.0004]
[1763150903227,0.20874246,95812.0,95800.0,0.0004]
[1763150903356,0.20874275,95812.0,95801.0,0.20876608]
[1763150903551,0.04039,95817.0,95800.0,0.0004]
[1763150903800,0.20875963,95804.0,95800.0,0.0004]
[1763150903992,0.20876062,95804.0,95800.0,0.0004]
[1763150904155,0.02721,95816.0,95800.0,0.0004]
[1763150904371,0.20874426,95812.0,95803.0,0.20876029]
[1763150904569,0.2087421,95813.0,95804.0,0.20875933]
[1763150904773,0.01318,95817.0,95812.0,0.2087417]
[1763150905002,0.01043514,95830.0,95800.0,0.0004]
[1763150905003,0.02721,95829.0,95813.0,0.02087399]
[1763150905303,0.02721,95829.0,95800.0,0.01083841]
[1763150905304,0.23591534,95829.0,95818.0,0.20872864]
[1763150905473,0.09926803,95834.0,95819.0,0.02087268]
[1763150905682,0.02721,95827.0,95819.0,0.22959741]
[1763150905884,0.02721,95827.0,95819.0,0.22959878]
[1763150906086,0.02721,95827.0,95823.0,0.20871815]
[1763150906311,0.30796253,95834.0,95824.0,0.22958672]
[1763150906512,0.20872063,95822.0,95810.0,0.2087461]
[1763150906713,0.01816,95824.0,95800.0,0.38294231]
[1763150906912,0.20872391,95821.0,95810.0,0.20874499]
[1763150907112,0.20871162,95826.0,95812.0,0.20874211]
[1763150907289,0.001,95827.0,95813.0,0.02087399]
[1763150907489,0.001,95827.0,95821.0,0.2087222]
[1763150907690,0.001,95827.0,95822.0,0.02087203]
[1763150907969,0.001,95827.0,95823.0,0.2295896]
[1763150908130,0.01318,95828.0,95825.0,0.2087136]
[1763150908345,0.01318,95828.0,95810.0,0.09926803]
[1763150908522,0.01318,95828.0,95811.0,0.02087442]
[1763150908927,0.01816,95812.0,95800.0,0.01083841]
[1763150909486,0.01816,95812.0,95800.0,0.21960449]
[1763150909646,0.01816,95812.0,95803.0,0.20875995]
[1763150909815,0.20873274,95817.0,95801.0,0.20876501]
[1763150910016,0.02721,95819.0,95800.0,0.0004]
[1763150910241,0.01318,95801.0,95800.0,0.0004]
[1763150910454,0.03134,95801.0,95800.0,0.0004]
[1763150910938,0.24010608,95801.0,95800.0,0.0004]
[1763150912196,0.03134,95801.0,95800.0,0.0004]
[1763150913034,0.20873992,95814.0,95800.0,0.0004]
[1763150913271,0.01347,95810.0,95802.0,0.2087633]
[1763150913479,0.01347,95810.0,95800.0,0.02127682]
[1763150913480,0.20875782,95805.0,95800.0,0.0004]
[1763150913707,0.0183,95801.0,95800.0,0.02127682]
[1763150913938,0.0183,95801.0,95800.0,0.0004]
[1763150914864,0.17008553,95801.0,95800.0,0.0004]
[1763150915124,0.1895182,95801.0,95800.0,0.0004]
[1763150916086,0.1370007,95801.0,95800.0,0.0004]
[1763150916314,0.5714797,95801.0,95800.0,0.0004]
[1763150916533,0.53178788,95791.0,95790.0,0.0004]
[1763150916751,0.58299055,95791.0,95790.0,0.0004]
[1763150917579,0.68404647,95791.0,95790.0,0.0004]
[1763150917810,0.58399055,95791.0,95790.0,0.0004]
[1763150918498,0.58499055,95791.0,95790.0,0.0004]
[1763150918719,0.62840929,95791.0,95790.0,0.0004]
[1763150918935,0.62840929,95791.0,95760.0,0.0004]
[1763150918936,0.20885329,95761.0,95760.0,0.0004]
[1763150919158,0.24062329,95761.0,95760.0,0.0004]
[1763150919890,0.58301073,95761.0,95760.0,0.0004]
[1763150920100,0.2088751,95751.0,95750.0,0.0004]
[1763150920298,0.2406451,95751.0,95750.0,0.0004]
[1763150920677,0.33991313,95751.0,95750.0,0.0004]
[1763150920880,0.66291313,95751.0,95750.0,0.0004]
[1763150921064,0.7859485,95751.0,95750.0,0.0004]
[1763150921399,0.76758251,95751.0,95750.0,0.0004]
[1763150921616,0.76658251,95751.0,95750.0,0.0004]
[1763150922044,0.76858251,95751.0,95750.0,0.0004]
[1763150922655,0.76758251,95751.0,95750.0,0.0004]
[1763150922858,0.76858251,95751.0,95750.0,0.0004]
[1763150923057,0.76858251,95751.0,95750.0,0.001736]
[1763150923500,0.76658251,95751.0,95750.0,0.001736]
[1763150923729,0.66491313,95751.0,95750.0,0.001736]
[1763150924344,0.45603803,95751.0,95750.0,0.001736]
[1763150924950,0.45503803,95751.0,95750.0,0.001736]
[1763150925367,0.45603803,95751.0,95750.0,0.001736]
[1763150933217,0.03377,95751.0,95750.0,0.001736]
[1763150933439,0.002,95751.0,95750.0,0.001736]
[1763150933636,0.0203,95751.0,95750.0,0.001736]
[1763150934076,0.0193,95751.0,95750.0,0.001736]
[1763150934430,0.08389098,95751.0,95750.0,0.001736]
[1763150934651,0.0183,95751.0,95750.0,0.001736]
[1763150936990,0.01347,95759.0,95750.0,0.001736]
[1763150937185,0.01347,95759.0,95750.0,0.0004]
[1763150937354,0.20884301,95766.0,95758.0,0.20885916]
[1763150937568,0.01347,95759.0,95758.0,0.20885983]
[1763150938163,0.01347,95759.0,95750.0,0.0004]
[1763150938406,0.0183,95751.0,95750.0,0.0004]
[1763150938612,0.2271751,95751.0,95750.0,0.0004]
[1763150939160,0.0183,95751.0,95750.0,0.0004]
[1763150939805,0.2271751,95751.0,95750.0,0.0004]
[1763150941773,0.66885552,95751.0,95750.0,0.0004]
[1763150944280,0.45998042,95751.0,95750.0,0.0004]
[1763150944621,0.13698042,95751.0,95750.0,0.001736]
[1763150944845,0.0183,95751.0,95750.0,0.001736]
[1763150945120,0.01347,95759.0,95750.0,0.001736]
[1763150945290,0.01347,95759.0,95758.0,0.20885983]
[1763150945490,0.01347,95759.0,95757.0,0.20886186]
[1763150947082,0.01347,95759.0,95753.0,0.20887017]
[1763150947442,0.02586,95778.0,95750.0,0.0004]
[1763150947649,0.20882765,95773.0,95761.0,0.20885252]
[1763150947874,0.03933,95776.0,95752.0,0.03746471]
[1763150947875,0.01947267,95772.0,95752.0,0.03746471]
[1763150948061,0.01947267,95771.0,95750.0,0.0004]
[1763150948269,0.02586,95775.0,95750.0,0.03786471]
[1763150948270,0.01764,95751.0,95750.0,0.03786471]
[1763150948481,0.01294,95753.0,95750.0,0.0004]
[1763150948703,0.01764,95751.0,95750.0,0.0004]
[1763150951700,0.01294,95753.0,95751.0,0.2088751]
[1763150951912,0.01294,95753.0,95752.0,0.01297777]
[1763150952133,0.01243,95760.0,95759.0,0.20885765]
[1763150953234,0.2088272,95773.0,95765.0,0.20884446]
[1763150953451,0.01947343,95772.0,95752.0,0.03746471]
[1763150953632,0.20880672,95783.0,95750.0,0.01084386]
[1763150953633,0.01947343,95771.0,95768.0,0.20883658]
[1763150953834,0.02582,95782.0,95769.0,0.20883486]
[1763150954036,0.01947425,95775.0,95769.0,0.20883486]
[1763150954238,0.01947425,95774.0,95768.0,0.20883786]
[1763150954440,0.01947425,95774.0,95751.0,0.11366149]
[1763150954441,0.02582,95782.0,95757.0,0.03746471]
[1763150954648,0.20880046,95786.0,95774.0,0.20882369]
[1763150954987,0.20880046,95786.0,95763.0,0.03746471]
[1763150955192,0.22229067,95776.0,95766.0,0.20884098]
[1763150955411,0.01347,95776.0,95767.0,0.20884009]
[1763150955611,0.20880891,95782.0,95763.0,0.03746471]
[1763150955810,0.20881592,95779.0,95764.0,0.11366149]
[1763150956063,0.02582,95789.0,95764.0,0.11366149]
[1763150956267,0.20883542,95770.0,95764.0,0.11366149]
[1763150956470,0.2088265,95774.0,95767.0,0.20883992]